[Event "Titled Tuesday Blitz June 28 Late 2022"]
[White "Jobava, Baadur"]
[Black "Laurusas, Tomas"]
[WhiteFideId "13601520"]
[BlackFideId "12803731"]
[WhiteElo "2617"]
[BlackElo "2442"]
[Result "0-1"]
[Round "06"]
[TimeControl "180+1"]
[Date "2022.06.28"]
[WhiteClock "0:00:16"]
[BlackClock "0:00:19"]

1. e4 {[%clk 0:03:00]}  c5 {[%clk 0:02:58]} 2. c3 {[%clk 0:03:00]}  d5 {[%clk 0:02:58]} 3. exd5 {[%clk 0:03:01]}  Qxd5 {[%clk 0:02:59]} 4. d4 {[%clk 0:03:01]}  Nf6 {[%clk 0:02:59]} 5. Nf3 {[%clk 0:02:59]}  Bg4 {[%clk 0:02:59]} 6. dxc5 {[%clk 0:02:56]}  Qxc5 {[%clk 0:02:57]} 7. Be3 {[%clk 0:02:55]}  Qc7 {[%clk 0:02:56]} 8. h3 {[%clk 0:02:47]}  Bf5 {[%clk 0:02:38]} 9. Na3 {[%clk 0:02:45]}  a6 {[%clk 0:02:38]} 10. Nc4 {[%clk 0:02:44]}  Nbd7 {[%clk 0:02:38]} 11. a4 {[%clk 0:02:44]}  e5 {[%clk 0:02:31]} 12. a5 {[%clk 0:02:42]}  Rd8 {[%clk 0:02:27]} 13. Qa4 {[%clk 0:02:33]}  Bc5 {[%clk 0:02:23]} 14. Be2 {[%clk 0:02:19]}  O-O {[%clk 0:02:19]} 15. O-O {[%clk 0:02:19]}  h6 {[%clk 0:02:10]} 16. Rfe1 {[%clk 0:02:16]}  Nd5 {[%clk 0:02:07]} 17. Bxc5 {[%clk 0:02:11]}  Nxc5 {[%clk 0:02:08]} 18. Qa3 {[%clk 0:02:12]}  e4 {[%clk 0:01:55]} 19. Nd4 {[%clk 0:02:11]}  Bg6 {[%clk 0:01:53]} 20. Bf1 {[%clk 0:02:05]}  Nf4 {[%clk 0:01:47]} 21. Ne3 {[%clk 0:01:59]}  f5 {[%clk 0:01:37]} 22. Red1 {[%clk 0:01:34]}  Kh7 {[%clk 0:01:19]} 23. Rd2 {[%clk 0:01:27]}  Rde8 {[%clk 0:00:55]} 24. Rad1 {[%clk 0:01:24]}  Nfd3 {[%clk 0:00:55]} 25. b4 {[%clk 0:01:23]}  f4 {[%clk 0:00:55]} 26. bxc5 {[%clk 0:01:22]}  fxe3 {[%clk 0:00:55]} 27. fxe3 {[%clk 0:01:23]}  Qg3 {[%clk 0:00:53]} 28. Bxd3 {[%clk 0:01:04]}  Qxe3+ {[%clk 0:00:49]} 29. Kh1 {[%clk 0:01:04]}  exd3 {[%clk 0:00:50]} 30. Qb2 {[%clk 0:01:04]}  Be4 {[%clk 0:00:47]} 31. Kh2 {[%clk 0:00:54]}  Re5 {[%clk 0:00:43]} 32. Qc1 {[%clk 0:00:34]}  Rg5 {[%clk 0:00:33]} 33. Rb2 {[%clk 0:00:34]}  Qg3+ {[%clk 0:00:31]} 34. Kg1 {[%clk 0:00:32]}  Bxg2 {[%clk 0:00:23]} 35. Qxg5 {[%clk 0:00:32]}  Qxg5 {[%clk 0:00:22]} 36. Rxg2 {[%clk 0:00:33]}  Qe3+ {[%clk 0:00:22]} 37. Kh2 {[%clk 0:00:33]}  Rf2 {[%clk 0:00:20]} 38. h4 {[%clk 0:00:15]}  Qf4+ {[%clk 0:00:18]} 39. Kg1 {[%clk 0:00:16]}  Rxg2+ {[%clk 0:00:18]} 40. Kxg2 {[%clk 0:00:16]}  Qg4+ {[%clk 0:00:19]} 0-1


[Site "https://www.chess.com"]

[Event "Titled Tuesday Blitz June 28 Late 2022"]
[White "Kaganskiy, Gleb"]
[Black "Omariev, Maksim"]
[WhiteFideId "4132025"]
[BlackFideId "4193423"]
[WhiteElo "2165"]
[BlackElo "2450"]
[Result "1-0"]
[Round "06"]
[TimeControl "180+1"]
[Date "2022.06.29"]
[WhiteClock "0:00:09"]
[BlackClock "0:00:08"]

1. a3 {[%clk 0:03:00]}  d5 {[%clk 0:02:25]} 2. g3 {[%clk 0:03:01]}  e5 {[%clk 0:02:23]} 3. Nf3 {[%clk 0:03:00]}  e4 {[%clk 0:02:23]} 4. Nh4 {[%clk 0:03:00]}  Be7 {[%clk 0:02:21]} 5. d3 {[%clk 0:03:01]}  Bxh4 {[%clk 0:02:19]} 6. gxh4 {[%clk 0:03:02]}  Qxh4 {[%clk 0:02:17]} 7. dxe4 {[%clk 0:03:02]}  dxe4 {[%clk 0:02:12]} 8. Rg1 {[%clk 0:03:02]}  Qf6 {[%clk 0:01:52]} 9. Bg5 {[%clk 0:02:40]}  Qd6 {[%clk 0:01:50]} 10. Qxd6 {[%clk 0:02:40]}  cxd6 {[%clk 0:01:51]} 11. Bf4 {[%clk 0:02:40]}  Ne7 {[%clk 0:01:45]} 12. Bxd6 {[%clk 0:02:33]}  Nf5 {[%clk 0:01:40]} 13. Bf4 {[%clk 0:02:19]}  O-O {[%clk 0:01:36]} 14. Nc3 {[%clk 0:02:17]}  Re8 {[%clk 0:01:28]} 15. Bg2 {[%clk 0:02:11]}  e3 {[%clk 0:01:22]} 16. fxe3 {[%clk 0:02:01]}  Na6 {[%clk 0:01:08]} 17. O-O-O {[%clk 0:01:52]}  g6 {[%clk 0:00:41]} 18. Nd5 {[%clk 0:01:50]}  Kg7 {[%clk 0:00:37]} 19. b4 {[%clk 0:01:39]}  Be6 {[%clk 0:00:34]} 20. Be5+ {[%clk 0:01:12]}  Kh6 {[%clk 0:00:34]} 21. Nf6 {[%clk 0:01:04]}  Red8 {[%clk 0:00:30]} 22. Ng4+ {[%clk 0:01:03]}  Kh5 {[%clk 0:00:30]} 23. Bf3 {[%clk 0:00:58]}  Rxd1+ {[%clk 0:00:29]} 24. Rxd1 {[%clk 0:00:49]}  Rc8 {[%clk 0:00:10]} 25. Nf6+ {[%clk 0:00:45]}  Kg5 {[%clk 0:00:10]} 26. Bxb7 {[%clk 0:00:39]}  Rc4 {[%clk 0:00:03]} 27. Bxa6 {[%clk 0:00:37]}  Rh4 {[%clk 0:00:03]} 28. Rg1+ {[%clk 0:00:34]}  Kh6 {[%clk 0:00:03]} 29. Ng4+ {[%clk 0:00:31]}  Kh5 {[%clk 0:00:03]} 30. Nf6+ {[%clk 0:00:25]}  Kh6 {[%clk 0:00:03]} 31. Kd2 {[%clk 0:00:16]}  g5 {[%clk 0:00:03]} 32. Ng8+ {[%clk 0:00:13]}  Kg6 {[%clk 0:00:04]} 33. Bd3 {[%clk 0:00:10]}  h6 {[%clk 0:00:03]} 34. Ne7+ {[%clk 0:00:10]}  Kh5 {[%clk 0:00:03]} 35. Nxf5 {[%clk 0:00:10]}  Bxf5 {[%clk 0:00:03]} 36. Bxf5 {[%clk 0:00:11]}  Rc4 {[%clk 0:00:04]} 37. c3 {[%clk 0:00:11]}  Rc6 {[%clk 0:00:04]} 38. Bd4 {[%clk 0:00:11]}  f6 {[%clk 0:00:04]} 39. e4 {[%clk 0:00:11]}  a5 {[%clk 0:00:04]} 40. bxa5 {[%clk 0:00:10]}  Ra6 {[%clk 0:00:04]} 41. Bb6 {[%clk 0:00:10]}  Ra8 {[%clk 0:00:03]} 42. e5 {[%clk 0:00:09]}  fxe5 {[%clk 0:00:03]} 43. Bd3 {[%clk 0:00:09]}  Re8 {[%clk 0:00:01]} 44. e4 {[%clk 0:00:08]}  g4 {[%clk 0:00:01]} 45. a6 {[%clk 0:00:08]}  Kh4 {[%clk 0:00:01]} 46. a7 {[%clk 0:00:09]}  h5 {[%clk 0:00:01]} 47. Bc4 {[%clk 0:00:09]}  Kh3 {[%clk 0:00:01]} 48. Bd5 {[%clk 0:00:08]}  Kxh2 {[%clk 0:00:01]} 49. a8=Q {[%clk 0:00:08]}  Rxa8 {[%clk 0:00:01]} 50. Bxa8 {[%clk 0:00:09]}  g3 {[%clk 0:00:01]} 51. Bd5 {[%clk 0:00:07]}  h4 {[%clk 0:00:02]} 52. Ke2 {[%clk 0:00:08]}  h3 {[%clk 0:00:03]} 53. Kf1 {[%clk 0:00:07]}  g2+ {[%clk 0:00:03]} 54. Rxg2+ {[%clk 0:00:07]}  hxg2+ {[%clk 0:00:03]} 55. Ke2 {[%clk 0:00:07]}  Kh1 {[%clk 0:00:03]} 56. a4 {[%clk 0:00:07]}  Kh2 {[%clk 0:00:03]} 57. a5 {[%clk 0:00:07]}  g1=Q {[%clk 0:00:03]} 58. Bxg1+ {[%clk 0:00:07]}  Kxg1 {[%clk 0:00:04]} 59. a6 {[%clk 0:00:07]}  Kg2 {[%clk 0:00:05]} 60. a7 {[%clk 0:00:08]}  Kg3 {[%clk 0:00:06]} 61. a8=Q {[%clk 0:00:09]}  Kg2 {[%clk 0:00:07]} 62. Qf8 {[%clk 0:00:09]}  Kg3 {[%clk 0:00:08]} 63. Qf3+ {[%clk 0:00:08]}  Kh2 {[%clk 0:00:08]} 64. Qg4 {[%clk 0:00:07]}  Kh1 {[%clk 0:00:08]} 65. Kf2 {[%clk 0:00:08]}  Kh2 {[%clk 0:00:08]} 66. Qh5# {[%clk 0:00:09]} 1-0


[Site "https://www.chess.com"]

[Event "Titled Tuesday Blitz June 28 Late 2022"]
[White "Kamsky, Gata"]
[Black "Bolourchifard, Farzad"]
[WhiteFideId "2000024"]
[BlackFideId "12510084"]
[WhiteElo "2645"]
[BlackElo "2317"]
[Result "1-0"]
[Round "06"]
[TimeControl "180+1"]
[Date "2022.06.28"]
[WhiteClock "0:00:09"]
[BlackClock "0:00:02"]

1. d4 {[%clk 0:03:00]}  Nf6 {[%clk 0:02:58]} 2. Nf3 {[%clk 0:02:59]}  e6 {[%clk 0:02:59]} 3. c4 {[%clk 0:02:58]}  b6 {[%clk 0:02:59]} 4. g3 {[%clk 0:02:58]}  Bb7 {[%clk 0:02:59]} 5. Bg2 {[%clk 0:02:58]}  Be7 {[%clk 0:03:00]} 6. O-O {[%clk 0:02:58]}  O-O {[%clk 0:03:01]} 7. Nc3 {[%clk 0:02:57]}  Ne4 {[%clk 0:03:01]} 8. Bd2 {[%clk 0:02:57]}  Nxc3 {[%clk 0:02:47]} 9. Bxc3 {[%clk 0:02:56]}  Be4 {[%clk 0:02:47]} 10. d5 {[%clk 0:02:55]}  Bf6 {[%clk 0:02:33]} 11. Rc1 {[%clk 0:02:48]}  c5 {[%clk 0:02:25]} 12. dxc6 {[%clk 0:02:22]}  Nxc6 {[%clk 0:02:01]} 13. Qd6 {[%clk 0:02:17]}  Qb8 {[%clk 0:01:32]} 14. Qxb8 {[%clk 0:02:06]}  Raxb8 {[%clk 0:01:31]} 15. Bxf6 {[%clk 0:02:05]}  gxf6 {[%clk 0:01:32]} 16. Rfd1 {[%clk 0:02:03]}  Rfd8 {[%clk 0:01:31]} 17. Nd4 {[%clk 0:02:01]}  Bxg2 {[%clk 0:01:29]} 18. Kxg2 {[%clk 0:02:01]}  Nxd4 {[%clk 0:01:25]} 19. Rxd4 {[%clk 0:01:59]}  Kf8 {[%clk 0:01:26]} 20. Rh4 {[%clk 0:01:59]}  Kg7 {[%clk 0:01:24]} 21. Rd1 {[%clk 0:01:57]}  Rbc8 {[%clk 0:01:21]} 22. Rhd4 {[%clk 0:01:55]}  Rc7 {[%clk 0:01:11]} 23. b3 {[%clk 0:01:51]}  Kf8 {[%clk 0:01:08]} 24. Kh3 {[%clk 0:01:46]}  Ke7 {[%clk 0:01:08]} 25. Rh4 {[%clk 0:01:43]}  Rh8 {[%clk 0:01:07]} 26. Rd2 {[%clk 0:01:41]}  Rc5 {[%clk 0:01:07]} 27. Rhd4 {[%clk 0:01:23]}  Rd8 {[%clk 0:01:01]} 28. Kh4 {[%clk 0:01:23]}  Rf5 {[%clk 0:00:52]} 29. f3 {[%clk 0:01:20]}  Rc5 {[%clk 0:00:48]} 30. g4 {[%clk 0:01:17]}  d6 {[%clk 0:00:46]} 31. h3 {[%clk 0:01:08]}  h6 {[%clk 0:00:42]} 32. f4 {[%clk 0:01:03]}  a6 {[%clk 0:00:35]} 33. e3 {[%clk 0:00:55]}  Rd7 {[%clk 0:00:34]} 34. Kg3 {[%clk 0:00:52]}  Rd8 {[%clk 0:00:34]} 35. Kf3 {[%clk 0:00:50]}  h5 {[%clk 0:00:34]} 36. Ke4 {[%clk 0:00:28]}  hxg4 {[%clk 0:00:33]} 37. hxg4 {[%clk 0:00:28]}  f5+ {[%clk 0:00:32]} 38. gxf5 {[%clk 0:00:28]}  Rxf5 {[%clk 0:00:33]} 39. b4 {[%clk 0:00:25]}  b5 {[%clk 0:00:25]} 40. c5 {[%clk 0:00:24]}  d5+ {[%clk 0:00:25]} 41. Kd3 {[%clk 0:00:22]}  Rh5 {[%clk 0:00:24]} 42. Kc3 {[%clk 0:00:21]}  Rh3 {[%clk 0:00:23]} 43. R4d3 {[%clk 0:00:21]}  Rg8 {[%clk 0:00:18]} 44. e4 {[%clk 0:00:21]}  Rxd3+ {[%clk 0:00:16]} 45. Kxd3 {[%clk 0:00:20]}  Rg3+ {[%clk 0:00:16]} 46. Kd4 {[%clk 0:00:20]}  dxe4 {[%clk 0:00:15]} 47. Kxe4 {[%clk 0:00:19]}  Rc3 {[%clk 0:00:16]} 48. f5 {[%clk 0:00:13]}  Rc4+ {[%clk 0:00:15]} 49. Rd4 {[%clk 0:00:13]}  exf5+ {[%clk 0:00:15]} 50. Kd5 {[%clk 0:00:12]}  Rc2 {[%clk 0:00:12]} 51. Kc6 {[%clk 0:00:12]}  Ke6 {[%clk 0:00:10]} 52. Kb6 {[%clk 0:00:11]}  Ke5 {[%clk 0:00:10]} 53. Rd7 {[%clk 0:00:11]}  f6 {[%clk 0:00:09]} 54. c6 {[%clk 0:00:12]}  f4 {[%clk 0:00:09]} 55. c7 {[%clk 0:00:11]}  f3 {[%clk 0:00:09]} 56. Rd3 {[%clk 0:00:11]}  Ke4 {[%clk 0:00:09]} 57. Rd6 {[%clk 0:00:11]}  f2 {[%clk 0:00:07]} 58. Rxf6 {[%clk 0:00:10]}  Ke3 {[%clk 0:00:05]} 59. Rf8 {[%clk 0:00:09]}  Ke2 {[%clk 0:00:03]} 60. Re8+ {[%clk 0:00:10]}  Kf3 {[%clk 0:00:02]} 61. c8=Q {[%clk 0:00:09]} 1-0


[Site "https://www.chess.com"]

[Event "Titled Tuesday Blitz June 28 Late 2022"]
[White "Keymer, Vincent"]
[Black "Xiong, Jeffery"]
[WhiteFideId "12940690"]
[BlackFideId "2047640"]
[WhiteElo "2548"]
[BlackElo "2714"]
[Result "1-0"]
[Round "06"]
[TimeControl "180+1"]
[Date "2022.06.28"]
[WhiteClock "0:00:46"]
[BlackClock "0:01:20"]

1. d4 {[%clk 0:03:00]}  Nf6 {[%clk 0:02:56]} 2. c4 {[%clk 0:03:01]}  g6 {[%clk 0:02:56]} 3. g3 {[%clk 0:02:59]}  c5 {[%clk 0:02:52]} 4. dxc5 {[%clk 0:02:53]}  Qa5+ {[%clk 0:02:47]} 5. Nc3 {[%clk 0:02:53]}  Bg7 {[%clk 0:02:45]} 6. Qa4 {[%clk 0:02:53]}  Qxc5 {[%clk 0:02:44]} 7. Bg2 {[%clk 0:02:46]}  Ng4 {[%clk 0:02:43]} 8. Nh3 {[%clk 0:02:46]}  O-O {[%clk 0:02:33]} 9. O-O {[%clk 0:02:44]}  Nc6 {[%clk 0:02:31]} 10. Nf4 {[%clk 0:02:30]}  d6 {[%clk 0:02:31]} 11. Ncd5 {[%clk 0:02:19]}  Nge5 {[%clk 0:02:03]} 12. b3 {[%clk 0:01:51]}  Nxc4 {[%clk 0:01:40]} 13. bxc4 {[%clk 0:01:49]}  Bxa1 {[%clk 0:01:40]} 14. Be3 {[%clk 0:01:47]}  Bd4 {[%clk 0:01:40]} 15. Nd3 {[%clk 0:01:45]}  Bxe3 {[%clk 0:01:41]} 16. Nxc5 {[%clk 0:01:44]}  Bxc5 {[%clk 0:01:42]} 17. Rb1 {[%clk 0:01:35]}  Rb8 {[%clk 0:01:41]} 18. Nf6+ {[%clk 0:01:10]}  exf6 {[%clk 0:01:41]} 19. Bxc6 {[%clk 0:01:10]}  Kg7 {[%clk 0:01:31]} 20. e3 {[%clk 0:01:08]}  Bf5 {[%clk 0:01:28]} 21. Rxb7 {[%clk 0:01:05]}  Rxb7 {[%clk 0:01:28]} 22. Bxb7 {[%clk 0:01:06]}  Rb8 {[%clk 0:01:29]} 23. Qa6 {[%clk 0:01:03]}  Be6 {[%clk 0:01:29]} 24. Kg2 {[%clk 0:01:00]}  Bxc4 {[%clk 0:01:28]} 25. Qxc4 {[%clk 0:00:59]}  Rxb7 {[%clk 0:01:28]} 26. g4 {[%clk 0:00:57]}  Rb4 {[%clk 0:01:28]} 27. Qe2 {[%clk 0:00:56]}  Ra4 {[%clk 0:01:25]} 28. h3 {[%clk 0:00:56]}  Rb4 {[%clk 0:01:26]} 29. Qc2 {[%clk 0:00:53]}  Rb8 {[%clk 0:01:25]} 30. Qc3 {[%clk 0:00:52]}  Rb4 {[%clk 0:01:23]} 31. g5 {[%clk 0:00:51]}  Ra4 {[%clk 0:01:21]} 32. gxf6+ {[%clk 0:00:47]}  Kh6 {[%clk 0:01:20]} 33. Qb3 {[%clk 0:00:46]} 1-0


[Site "https://www.chess.com"]

[Event "Titled Tuesday Blitz June 28 Late 2022"]
[White "Kuzmin, Roman"]
[Black "Zhu, Jiner"]
[WhiteFideId "44134932"]
[BlackFideId "8608059"]
[WhiteElo "2433"]
[BlackElo "2654"]
[Result "0-1"]
[Round "06"]
[TimeControl "180+1"]
[Date "2022.06.29"]
[WhiteClock "0:00:01"]
[BlackClock "0:00:08"]

1. e4 {[%clk 0:03:00]}  e5 {[%clk 0:02:55]} 2. Nf3 {[%clk 0:03:00]}  Nf6 {[%clk 0:02:55]} 3. Nxe5 {[%clk 0:03:00]}  d6 {[%clk 0:02:55]} 4. Nf3 {[%clk 0:03:00]}  Nxe4 {[%clk 0:02:56]} 5. d4 {[%clk 0:03:00]}  d5 {[%clk 0:02:55]} 6. Bd3 {[%clk 0:03:01]}  Bd6 {[%clk 0:02:56]} 7. O-O {[%clk 0:03:00]}  O-O {[%clk 0:02:56]} 8. c4 {[%clk 0:02:59]}  c6 {[%clk 0:02:52]} 9. Re1 {[%clk 0:02:59]}  Bf5 {[%clk 0:02:52]} 10. Qb3 {[%clk 0:02:58]}  Qd7 {[%clk 0:02:45]} 11. cxd5 {[%clk 0:02:55]}  cxd5 {[%clk 0:02:43]} 12. Nc3 {[%clk 0:02:55]}  Nxc3 {[%clk 0:02:39]} 13. Qxc3 {[%clk 0:02:08]}  Nc6 {[%clk 0:02:29]} 14. Ne5 {[%clk 0:01:47]}  Bxe5 {[%clk 0:02:15]} 15. dxe5 {[%clk 0:01:48]}  d4 {[%clk 0:02:14]} 16. Qb3 {[%clk 0:01:44]}  Bxd3 {[%clk 0:01:47]} 17. Qxd3 {[%clk 0:01:45]}  Nb4 {[%clk 0:01:36]} 18. Qg3 {[%clk 0:01:45]}  Nc2 {[%clk 0:01:19]} 19. Bh6 {[%clk 0:01:44]}  g6 {[%clk 0:01:14]} 20. Qf4 {[%clk 0:00:32]}  Qe6 {[%clk 0:01:13]} 21. Bxf8 {[%clk 0:00:32]}  Rxf8 {[%clk 0:01:14]} 22. Rad1 {[%clk 0:00:33]}  Nxe1 {[%clk 0:01:10]} 23. Rxe1 {[%clk 0:00:34]}  Rd8 {[%clk 0:01:09]} 24. Rd1 {[%clk 0:00:33]}  Qxa2 {[%clk 0:01:08]} 25. b4 {[%clk 0:00:27]}  d3 {[%clk 0:01:01]} 26. h4 {[%clk 0:00:25]}  h5 {[%clk 0:00:56]} 27. Qf3 {[%clk 0:00:15]}  Qd5 {[%clk 0:00:47]} 28. Qf6 {[%clk 0:00:13]}  Rd7 {[%clk 0:00:42]} 29. Rc1 {[%clk 0:00:08]}  Rd8 {[%clk 0:00:24]} 30. e6 {[%clk 0:00:09]}  d2 {[%clk 0:00:22]} 31. exf7+ {[%clk 0:00:07]}  Kf8 {[%clk 0:00:14]} 32. Qh8+ {[%clk 0:00:07]}  Kxf7 {[%clk 0:00:14]} 33. Rc7+ {[%clk 0:00:07]}  Ke6 {[%clk 0:00:11]} 34. Qh6 {[%clk 0:00:01]}  d1=Q+ {[%clk 0:00:11]} 35. Kh2 {[%clk 0:00:02]}  Qe5+ {[%clk 0:00:09]} 36. f4 {[%clk 0:00:01]}  Qxc7 {[%clk 0:00:08]} 0-1


[Site "https://www.chess.com"]

[Event "Titled Tuesday Blitz June 28 Late 2022"]
[White "Ladan, Nicholas"]
[Black "Ardila, Oscar Humberto"]
[WhiteFideId "30918855"]
[BlackFideId "4404742"]
[WhiteElo "2167"]
[BlackElo "1956"]
[Result "1-0"]
[Round "06"]
[TimeControl "180+1"]
[Date "2022.06.29"]
[WhiteClock "0:01:37"]
[BlackClock "0:01:20"]

1. d4 {[%clk 0:03:00]}  Nf6 {[%clk 0:02:59]} 2. c4 {[%clk 0:03:01]}  e6 {[%clk 0:02:59]} 3. g3 {[%clk 0:03:01]}  Bb4+ {[%clk 0:02:59]} 4. Bd2 {[%clk 0:03:01]}  Qe7 {[%clk 0:02:59]} 5. Bg2 {[%clk 0:03:00]}  O-O {[%clk 0:02:59]} 6. Nf3 {[%clk 0:03:01]}  Na6 {[%clk 0:02:56]} 7. O-O {[%clk 0:03:01]}  c5 {[%clk 0:02:56]} 8. Qc1 {[%clk 0:02:58]}  Bxd2 {[%clk 0:02:52]} 9. Nbxd2 {[%clk 0:02:57]}  d6 {[%clk 0:02:52]} 10. e3 {[%clk 0:02:55]}  Bd7 {[%clk 0:02:47]} 11. Ne1 {[%clk 0:02:50]}  Bc6 {[%clk 0:02:47]} 12. Bxc6 {[%clk 0:02:39]}  bxc6 {[%clk 0:02:47]} 13. Nd3 {[%clk 0:02:40]}  cxd4 {[%clk 0:02:46]} 14. exd4 {[%clk 0:02:40]}  Rab8 {[%clk 0:02:42]} 15. b3 {[%clk 0:02:38]}  c5 {[%clk 0:02:40]} 16. dxc5 {[%clk 0:02:33]}  Nxc5 {[%clk 0:02:39]} 17. Nxc5 {[%clk 0:02:28]}  dxc5 {[%clk 0:02:40]} 18. Rd1 {[%clk 0:02:27]}  Rfd8 {[%clk 0:02:37]} 19. Qc3 {[%clk 0:02:23]}  Qb7 {[%clk 0:02:33]} 20. Qe3 {[%clk 0:02:20]}  Qc6 {[%clk 0:02:16]} 21. Nf3 {[%clk 0:02:14]}  a5 {[%clk 0:02:12]} 22. Ne5 {[%clk 0:02:09]}  Qc7 {[%clk 0:02:12]} 23. Nd3 {[%clk 0:01:59]}  Rbc8 {[%clk 0:02:07]} 24. Qxc5 {[%clk 0:01:45]}  Ne4 {[%clk 0:01:24]} 25. Qxc7 {[%clk 0:01:41]}  Rxc7 {[%clk 0:01:24]} 26. Ne5 {[%clk 0:01:37]}  Rxd1+ {[%clk 0:01:20]} 27. Rxd1 {[%clk 0:01:38]}  f6 {[%clk 0:01:20]} 28. Rd8# {[%clk 0:01:37]} 1-0


[Site "https://www.chess.com"]

[Event "Titled Tuesday Blitz June 28 Late 2022"]
[White "Livaic, Leon"]
[Black "Kim, Sergey"]
[WhiteFideId "14531534"]
[BlackFideId "13700570"]
[WhiteElo "2540"]
[BlackElo "2597"]
[Result "1-0"]
[Round "06"]
[TimeControl "180+1"]
[Date "2022.06.28"]
[WhiteClock "0:00:37"]
[BlackClock "0:00:57"]

1. d4 {[%clk 0:03:00]}  Nf6 {[%clk 0:02:56]} 2. c4 {[%clk 0:03:00]}  g6 {[%clk 0:02:56]} 3. Nc3 {[%clk 0:03:01]}  Bg7 {[%clk 0:02:55]} 4. e4 {[%clk 0:03:01]}  d6 {[%clk 0:02:56]} 5. h3 {[%clk 0:03:02]}  O-O {[%clk 0:02:56]} 6. Be3 {[%clk 0:03:02]}  e5 {[%clk 0:02:56]} 7. d5 {[%clk 0:03:03]}  a5 {[%clk 0:02:56]} 8. g4 {[%clk 0:03:02]}  Na6 {[%clk 0:02:57]} 9. Nge2 {[%clk 0:03:03]}  Nc5 {[%clk 0:02:57]} 10. Ng3 {[%clk 0:03:03]}  Bd7 {[%clk 0:02:56]} 11. Qd2 {[%clk 0:03:03]}  a4 {[%clk 0:02:56]} 12. f3 {[%clk 0:03:02]}  c6 {[%clk 0:02:54]} 13. h4 {[%clk 0:03:02]}  cxd5 {[%clk 0:02:52]} 14. cxd5 {[%clk 0:03:03]}  Ne8 {[%clk 0:02:52]} 15. h5 {[%clk 0:03:00]}  Qe7 {[%clk 0:02:48]} 16. Bb5 {[%clk 0:02:40]}  b6 {[%clk 0:02:45]} 17. Bxd7 {[%clk 0:02:38]}  Qxd7 {[%clk 0:02:45]} 18. Kf2 {[%clk 0:02:19]}  Nc7 {[%clk 0:02:42]} 19. Kg2 {[%clk 0:02:18]}  b5 {[%clk 0:02:41]} 20. Rh3 {[%clk 0:02:07]}  b4 {[%clk 0:02:40]} 21. Nce2 {[%clk 0:02:07]}  Nb5 {[%clk 0:02:40]} 22. Rah1 {[%clk 0:02:07]}  Rac8 {[%clk 0:02:19]} 23. hxg6 {[%clk 0:01:58]}  hxg6 {[%clk 0:02:19]} 24. Bh6 {[%clk 0:01:38]}  f6 {[%clk 0:02:09]} 25. Bxg7 {[%clk 0:01:38]}  Qxg7 {[%clk 0:02:09]} 26. Rh8+ {[%clk 0:01:39]}  Qxh8 {[%clk 0:02:07]} 27. Rxh8+ {[%clk 0:01:40]}  Kxh8 {[%clk 0:02:07]} 28. Qh6+ {[%clk 0:01:40]}  Kg8 {[%clk 0:02:07]} 29. Qxg6+ {[%clk 0:01:41]}  Kh8 {[%clk 0:02:07]} 30. Nf5 {[%clk 0:01:32]}  Rc7 {[%clk 0:02:06]} 31. Neg3 {[%clk 0:01:15]}  Nd3 {[%clk 0:02:03]} 32. Qh6+ {[%clk 0:01:15]}  Kg8 {[%clk 0:02:03]} 33. Nh5 {[%clk 0:01:15]}  Nf4+ {[%clk 0:01:54]} 34. Nxf4 {[%clk 0:01:15]}  exf4 {[%clk 0:01:55]} 35. Qxf4 {[%clk 0:01:16]}  Rd7 {[%clk 0:01:40]} 36. Qe3 {[%clk 0:01:08]}  a3 {[%clk 0:01:33]} 37. bxa3 {[%clk 0:01:07]}  bxa3 {[%clk 0:01:34]} 38. Qb6 {[%clk 0:01:01]}  Nc7 {[%clk 0:01:21]} 39. Nxd6 {[%clk 0:00:58]}  Ne8 {[%clk 0:01:12]} 40. Nf5 {[%clk 0:00:56]}  Ng7 {[%clk 0:01:08]} 41. Nxg7 {[%clk 0:00:49]}  Rxg7 {[%clk 0:01:08]} 42. Qa6 {[%clk 0:00:48]}  Rc7 {[%clk 0:01:02]} 43. Qxa3 {[%clk 0:00:47]}  Rfc8 {[%clk 0:01:02]} 44. Kg3 {[%clk 0:00:47]}  Kg7 {[%clk 0:01:00]} 45. Kf4 {[%clk 0:00:46]}  Rc3 {[%clk 0:00:57]} 46. Qe7+ {[%clk 0:00:46]}  Kg6 {[%clk 0:00:57]} 47. d6 {[%clk 0:00:37]} 1-0


[Site "https://www.chess.com"]

[Event "Titled Tuesday Blitz June 28 Late 2022"]
[White "Lopez Gracia, Fernando"]
[Black "Ladopoulos, Dimitrios"]
[WhiteFideId "2207184"]
[BlackFideId "4239580"]
[WhiteElo "2477"]
[BlackElo "2195"]
[Result "0-1"]
[Round "06"]
[TimeControl "180+1"]
[Date "2022.06.28"]
[WhiteClock "0:00:29"]
[BlackClock "0:02:07"]

1. c4 {[%clk 0:03:00]}  b6 {[%clk 0:02:56]} 2. e4 {[%clk 0:03:00]}  Bb7 {[%clk 0:02:55]} 3. Nc3 {[%clk 0:03:01]}  e6 {[%clk 0:02:54]} 4. Bd3 {[%clk 0:03:00]}  Bb4 {[%clk 0:02:54]} 5. Nge2 {[%clk 0:02:59]}  Ne7 {[%clk 0:02:54]} 6. O-O {[%clk 0:02:55]}  Bxc3 {[%clk 0:02:53]} 7. Nxc3 {[%clk 0:02:54]}  O-O {[%clk 0:02:54]} 8. e5 {[%clk 0:02:52]}  Nbc6 {[%clk 0:02:52]} 9. Re1 {[%clk 0:02:51]}  Ng6 {[%clk 0:02:48]} 10. Bxg6 {[%clk 0:02:40]}  hxg6 {[%clk 0:02:49]} 11. d4 {[%clk 0:02:41]}  d6 {[%clk 0:02:48]} 12. exd6 {[%clk 0:02:35]}  Qxd6 {[%clk 0:02:49]} 13. Be3 {[%clk 0:02:34]}  Rad8 {[%clk 0:02:48]} 14. Ne4 {[%clk 0:02:31]}  Qd7 {[%clk 0:02:42]} 15. Qa4 {[%clk 0:02:23]}  Nxd4 {[%clk 0:02:38]} 16. Qxd7 {[%clk 0:02:20]}  Rxd7 {[%clk 0:02:39]} 17. Bxd4 {[%clk 0:02:21]}  Rxd4 {[%clk 0:02:40]} 18. Nc3 {[%clk 0:02:21]}  Rxc4 {[%clk 0:02:37]} 19. Rad1 {[%clk 0:02:20]}  Bc6 {[%clk 0:02:37]} 20. Rd3 {[%clk 0:02:15]}  Re8 {[%clk 0:02:35]} 21. Red1 {[%clk 0:02:15]}  Kf8 {[%clk 0:02:34]} 22. Rd8 {[%clk 0:02:05]}  Ke7 {[%clk 0:02:32]} 23. Rxe8+ {[%clk 0:02:05]}  Kxe8 {[%clk 0:02:32]} 24. h3 {[%clk 0:02:05]}  b5 {[%clk 0:02:31]} 25. a3 {[%clk 0:02:04]}  a5 {[%clk 0:02:31]} 26. Ne2 {[%clk 0:02:02]}  e5 {[%clk 0:02:30]} 27. Rd2 {[%clk 0:02:02]}  f6 {[%clk 0:02:29]} 28. Nc3 {[%clk 0:02:00]}  b4 {[%clk 0:02:29]} 29. Na2 {[%clk 0:01:59]}  b3 {[%clk 0:02:23]} 30. Nc3 {[%clk 0:01:59]}  Rxc3 {[%clk 0:02:22]} 31. bxc3 {[%clk 0:01:59]}  Be4 {[%clk 0:02:23]} 32. Rb2 {[%clk 0:01:51]}  Bc2 {[%clk 0:02:21]} 33. Kf1 {[%clk 0:01:47]}  Kd7 {[%clk 0:02:21]} 34. Ke2 {[%clk 0:01:33]}  Kc6 {[%clk 0:02:20]} 35. Ke3 {[%clk 0:00:55]}  Kd5 {[%clk 0:02:17]} 36. a4 {[%clk 0:00:43]}  Kc4 {[%clk 0:02:15]} 37. Kd2 {[%clk 0:00:44]}  g5 {[%clk 0:02:14]} 38. g3 {[%clk 0:00:43]}  f5 {[%clk 0:02:13]} 39. g4 {[%clk 0:00:39]}  f4 {[%clk 0:02:12]} 40. f3 {[%clk 0:00:34]}  c5 {[%clk 0:02:08]} 41. Rxc2 {[%clk 0:00:30]}  bxc2 {[%clk 0:02:09]} 42. Kxc2 {[%clk 0:00:31]}  g6 {[%clk 0:02:05]} 43. Kd2 {[%clk 0:00:29]}  Kb3 {[%clk 0:02:06]} 44. Kd3 {[%clk 0:00:30]}  c4+ {[%clk 0:02:06]} 45. Kd2 {[%clk 0:00:29]}  Kb2 {[%clk 0:02:07]} 0-1


[Site "https://www.chess.com"]